Company(T),Trans.date,Supplier Name(T),TransNo,Amount,Irrecoverable VAT,Service/Dept(T),Procurement Category,Account code,Account code(T),Narrative/Purpose of Spend,Govt Procurement Card
East Cambridgeshire District Council,23/06/2017, Rail travel,5106523,496.55,,National Practitioner Support Programme,Employees,1051,Staff Travelling,,Y
East Cambridgeshire District Council,23/06/2017,Lunches,5106523,536.49,,National Practitioner Support Programme,Employees,1052,Staff Subsistence,,Y
East Cambridgeshire District Council,23/06/2017,Venue Birmingham,5106523,231,,Training,Employees,1131,Training - Expenses,Accommodation for training,Y
East Cambridgeshire District Council,14/06/2017,Lawyers in Local Government (LLG),638965,645,,Training,Employees,1135,Training - External,"Planning Law, Committes Basic Survival Guide, Town & Country Planning -Redacted Personal Data",
East Cambridgeshire District Council,23/06/2017,LABC,5106523,300,,Training,Employees,1135,Training - External,Training Redacted Personal Data,Y
East Cambridgeshire District Council,15/06/2017,Keep Britain Tidy,639038,"4,050.00",,Training,Employees,1136,Qualifications,KBT Training - Enforcement Academy Training - Redacted Personal Data,
East Cambridgeshire District Council,26/06/2017,BPP Professional Education Ltd,639104,"1,297.00",,Training,Employees,1136,Qualifications,PSC Core & Electives -Redacted Personal Data,
East Cambridgeshire District Council,02/06/2017,The Leisure Media Company Ltd,638875,992,,Sport & Recreation Admin,Employees,1140,Staff Advertising,Advert - Leisure Opportunities 16/5/17,
East Cambridgeshire District Council,07/06/2017,C D Clowe,638918,"1,432.08",,Portley Hill Littleport Depot,Premises,2020,Premises Contract Work,EICR Portley Hill Depot,
East Cambridgeshire District Council,12/06/2017,Pickerings Europe Ltd,638940,"1,486.96",,The Grange,Premises,2020,Premises Contract Work,,
East Cambridgeshire District Council,19/06/2017,CamAlarms Limited,639052,"1,975.00",,The Grange,Premises,2020,Premises Contract Work,Optical Heat Sensors,
East Cambridgeshire District Council,23/06/2017,C D Clowe,639091,574.17,,Travellers Site - Earith Bridge,Premises,2020,Premises Contract Work,June 17 remedial works Earith travellers site,
East Cambridgeshire District Council,23/06/2017,C D Clowe,639092,"2,395.80",,Travellers Site - Earith Bridge,Premises,2020,Premises Contract Work,June 2017 earith distribution board upgrade,
East Cambridgeshire District Council,27/06/2017,Anglia Security Services Ltd,639103,955.95,,Mepal Outdoor Centre,Premises,2020,Premises Contract Work,Provision of Secuirty Equipment & Monitoring 16June-16July2017 - Mepal Outdoor Centre,
East Cambridgeshire District Council,27/06/2017,C D Clowe,639106,760.04,,The Grange,Premises,2020,Premises Contract Work,Emergency Lighting - The Grange,
East Cambridgeshire District Council,27/06/2017,Ramsay Holmes Doors,639120,523.69,,The Grange,Premises,2020,Premises Contract Work,"Main Entrance, Front Pass & Rear Staff Entrance - Repairs",
East Cambridgeshire District Council,28/06/2017,Constant Cooling Ltd,639128,"1,924.00",,The Grange,Premises,2020,Premises Contract Work,Installation of 1 x Toshiba Wall Mounted System - Palace Green Office,
East Cambridgeshire District Council,02/06/2017,CamAlarms Limited,1137342,540,,The Grange,Premises,2020,Premises Contract Work,12 Monthly Maintenance Charge - The Grange,
East Cambridgeshire District Council,05/06/2017,Cambridge Door Services Ltd,638905,763.93,,Parking Of Vehicles,Premises,2030,Premises Asset Management,Repairs to barrier,
East Cambridgeshire District Council,12/06/2017,Able Group,638949,"2,604.15",,Mepal Outdoor Centre,Premises,2030,Premises Asset Management,Mepal Outdoor Centre,
East Cambridgeshire District Council,15/06/2017,Constant Cooling Ltd,638952,"1,820.73",,The Grange,Premises,2030,Premises Asset Management,Server Room,
East Cambridgeshire District Council,26/06/2017,Polysafe Level Crossing Systems Ltd,639097,"3,041.00",,Parking Of Vehicles,Premises,2030,Premises Asset Management,barrier,
East Cambridgeshire District Council,10/06/2017,Total Gas and Power Limited,1137397,"1,695.57",,The Grange,Premises,2110,Electricity,3004663200 The Grange,
East Cambridgeshire District Council,10/06/2017,Total Gas and Power Limited,1137398,735.07,,E Space North,Premises,2110,Electricity,3004663222 Espace North,
East Cambridgeshire District Council,10/06/2017,Total Gas and Power Limited,1137407,-834.03,,"PC Main Street, Littleport",Premises,2110,Electricity,3004789975 Public Toilets Main Street,
East Cambridgeshire District Council,14/06/2017,The Ross Peers Sports Centre,638972,"6,558.29",,General Elections,Premises,2211,Rent Premises/Room Hire,General Election 8-9/6/17,
East Cambridgeshire District Council,14/06/2017,The Ross Peers Sports Centre,638973,"3,279.15",,Combined Authority Mayoral Elections,Premises,2211,Rent Premises/Room Hire,Mayoral Election 4-5/6/17,
East Cambridgeshire District Council,14/06/2017,The Ross Peers Sports Centre,638973,"3,279.15",,County Council Elections,Premises,2211,Rent Premises/Room Hire,Mayoral Election 4-5/6/17,
East Cambridgeshire District Council,08/06/2017,Stuntney Social Club,639022,500,,General Elections,Premises,2211,Rent Premises/Room Hire,South East Cambs Parliamentary Election 8/6/17,
East Cambridgeshire District Council,01/06/2017,East Cambs District Council,1137335,"1,532.80",,E Space South,Premises,2310,General Rates,907812676 Unit 8 Espace South,
East Cambridgeshire District Council,01/06/2017,East Cambs District Council,1137336,"1,980.50",,E Space South,Premises,2310,General Rates,907777737 ESpace South,
East Cambridgeshire District Council,15/06/2017,Cranbrook Plants,638979,"1,015.00",,Parks And Open Spaces,Premises,2810,Grounds Materials,,
East Cambridgeshire District Council,02/06/2017,Be Fuelcards,1137340,"2,368.35",,Parks And Open Spaces,Transport,3021,Derv,Fuelcards May 2017,
East Cambridgeshire District Council,14/06/2017,Elliott,638958,957.9,,General Elections,Supplies & Services,4013,Equipment - Hire,,
East Cambridgeshire District Council,15/06/2017,A1 Audio Visual Events,639030,882,,Combined Authority Mayoral Elections,Supplies & Services,4013,Equipment - Hire,Mayor Elections 4-5/5/17,
East Cambridgeshire District Council,15/06/2017,A1 Audio Visual Events,639030,882,,County Council Elections,Supplies & Services,4013,Equipment - Hire,Mayor Elections 4-5/5/17,
East Cambridgeshire District Council,15/06/2017,A1 Audio Visual Events,639031,"1,326.00",,General Elections,Supplies & Services,4013,Equipment - Hire,General Elections 8/6/17,
East Cambridgeshire District Council,18/05/2017,Cambridgeshire County Council,638851,"6,355.14",,Community Transport,Supplies & Services,4015,S106 Spend,Stagecoach Ely,
East Cambridgeshire District Council,01/06/2017,AJ & R Scamblers & Sons Ltd,638877,"21,681.00",,Parks And Open Spaces,Supplies & Services,4015,S106 Spend,Amazone Profihoppor 4wdi,
East Cambridgeshire District Council,23/06/2017,ESPO,639077,"1,308.00",,The Grange,Supplies & Services,4020,Furniture - Purchase,,
East Cambridgeshire District Council,06/05/2017,Park Retail Ltd t/as Love2Reward,638862,"1,029.00",,Recycling Reward Scheme,Supplies & Services,4030,Materials - Purchase,Love2shop Vouchers,
East Cambridgeshire District Council,05/06/2017,Bunzl  Cleaning & Hygiene Supplies,638882,506.18,,Public Conveniences,Supplies & Services,4030,Materials - Purchase,,
East Cambridgeshire District Council,08/06/2017,Park Retail Ltd t/as Love2Reward,638971,"1,029.00",,Recycling Reward Scheme,Supplies & Services,4030,Materials - Purchase,Love2Shop Vouchers,
East Cambridgeshire District Council,27/06/2017,Create Signs Ltd,639108,755,,General Elections,Supplies & Services,4030,Materials - Purchase,Pop up Panels,
East Cambridgeshire District Council,31/05/2017,Corporate Mailing Solutions,638855,"5,637.85",,General Elections,Supplies & Services,4310,Printing & Stationery,General Election,
East Cambridgeshire District Council,31/05/2017,Corporate Mailing Solutions,638856,"7,262.42",,General Elections,Supplies & Services,4310,Printing & Stationery,General Elcetion Poll cards,
East Cambridgeshire District Council,11/06/2017,Corporate Mailing Solutions,638955,"1,500.65",,Local Elections,Supplies & Services,4310,Printing & Stationery,Soham By Election,
East Cambridgeshire District Council,10/06/2017,Simply Folders,638975,"2,955.00",,National Practitioner Support Programme,Supplies & Services,4310,Printing & Stationery,,
East Cambridgeshire District Council,23/06/2017,4imprint,5106523,231,,National Practitioner Support Programme,Supplies & Services,4310,Printing & Stationery,500 pens,Y
East Cambridgeshire District Council,23/06/2017,Violet Office Supplies,5106523,9.9,,Legal,Supplies & Services,4310,Printing & Stationery,Sign her stickers,Y
East Cambridgeshire District Council,12/06/2017,G4S Cash Solutions (UK) Ltd,1137392,822.99,,Angel Drove Commuters Car Park,Supplies & Services,4412,Courier Service,Contract 3342504 1/7/17-31/7/17,
East Cambridgeshire District Council,14/06/2017,Redacted Personal Data,638957,575,,Homelessness,Supplies & Services,4421,Sanctuary Homelessness/Rent Deposit,Redacted Personal Data,
East Cambridgeshire District Council,22/06/2017,Redacted Personal Data,639071,"1,200.00",,Homelessness,Supplies & Services,4421,Sanctuary Homelessness/Rent Deposit,Deposit Redacted Personal Data,
East Cambridgeshire District Council,20/06/2017,Spicerhaart Residential Lettings Ltd,639072,"1,211.00",,Homelessness,Supplies & Services,4421,Sanctuary Homelessness/Rent Deposit,Deposit for Redacted Personal Data,
East Cambridgeshire District Council,18/06/2017,Tucker Gardner Residential Ltd,639074,825,,Homelessness,Supplies & Services,4421,Sanctuary Homelessness/Rent Deposit,Redacted Personal Data,
East Cambridgeshire District Council,20/06/2017,Exacom Systems Ltd,639061,"1,350.00",,Infrastructure and Strategy,Supplies & Services,4426,Training & Excercises,Exacom 2 Day CIL Workshop 15-16/6/17,
East Cambridgeshire District Council,01/06/2017,Hays Human Resources,638873,"1,470.00",,Finance - Accountancy,Supplies & Services,4430,Consultants Fees,Redacted Personal Data,
East Cambridgeshire District Council,05/06/2017,The Wildlife Trust BCNP,638901,"3,000.00",,Planning,Supplies & Services,4430,Consultants Fees,Service Legal Agreement for 2015-2018,
East Cambridgeshire District Council,05/06/2017,Cambridgeshire County Council,638912,"15,000.00",,Handyperson Scheme,Supplies & Services,4430,Consultants Fees,Handypersons funding,
East Cambridgeshire District Council,14/06/2017,Hays Human Resources,638960,735,,Finance - Accountancy,Supplies & Services,4430,Consultants Fees,Redacted Personal Data - Week Ending 9/6/17,
East Cambridgeshire District Council,23/06/2017,Valuation Office Agency Admin,639125,"2,992.75",,Planning,Supplies & Services,4430,Consultants Fees,Land and Building Redacted Personal Data,
East Cambridgeshire District Council,09/06/2017,CCC-Pensions Income Account,1137385,"1,050.00",,Finance - Accountancy,Supplies & Services,4430,Consultants Fees,IAS19 & FRS102 Reports March 2017,
East Cambridgeshire District Council,09/06/2017,Civica UK Limited,1137390,"4,878.26",,Infrastructure and Strategy,Supplies & Services,4430,Consultants Fees,"Licence, Support & Maintenance 1/7/17-30/6/18",
East Cambridgeshire District Council,23/06/2017,Mcol,5106523,60,,Finance - Creditors (AP)& Debtors (AR),Supplies & Services,4444,Court Costs,Court fees,Y
East Cambridgeshire District Council,23/06/2017,Mcol,5106523,"1,025.51",,Finance - Creditors (AP)& Debtors (AR),Supplies & Services,4444,Court Costs,Court fees,Y
East Cambridgeshire District Council,23/06/2017,Data Certainty Ltd,5106523,33.33,,Env Health - Admin,Supplies & Services,4445,Search Fees,Will register search,Y
East Cambridgeshire District Council,28/04/2017,Northgate Public Services (UK) Ltd,638864,"1,500.00",,Finance - Accountancy,Supplies & Services,4452,IT - Upgrade consultants,Paris VAT breakdown,
East Cambridgeshire District Council,27/06/2017,Northgate Public Services (UK) Ltd,639116,"1,000.00",,Information Technology,Supplies & Services,4452,IT - Upgrade consultants,PARIS System - SQL Server Migration,
East Cambridgeshire District Council,09/06/2017,Corporate Mailing Solutions,638954,"1,438.56",,Local Elections,Supplies & Services,4510,Postage,Soham By Election,
East Cambridgeshire District Council,19/06/2017,Purchase Power,639068,"1,013.00",,E Space North,Supplies & Services,4510,Postage,Meter Reset & Transaction Fee 2/6/17,
East Cambridgeshire District Council,26/05/2017,Royal Mail Group plc,1137297,671.21,,General Elections,Supplies & Services,4510,Postage,RRUC-LYAZ-RLUY,
East Cambridgeshire District Council,02/06/2017,Royal Mail Group plc,1137319,"1,065.32",,DMS,Supplies & Services,4510,Postage,Account Number 0204765009,
East Cambridgeshire District Council,01/06/2017,Royal Mail Group plc,1137329,"5,406.94",,General Elections,Supplies & Services,4510,Postage,Account Number 0204765009,
East Cambridgeshire District Council,09/06/2017,Royal Mail Group plc,1137394,"2,505.72",,General Elections,Supplies & Services,4510,Postage,Account 0204765009,
East Cambridgeshire District Council,15/06/2017,Neopost Ltd,1137432,"3,000.00",,DMS,Supplies & Services,4510,Postage,Postage Recredit,
East Cambridgeshire District Council,16/06/2017,Royal Mail Group plc,1137446,879.63,,General Elections,Supplies & Services,4510,Postage,Account Number 0204765009,
East Cambridgeshire District Council,23/06/2017,Post Office,5106523,140.76,,National Practitioner Support Programme,Supplies & Services,4510,Postage,postage,Y
East Cambridgeshire District Council,02/06/2017,Ip-Xchange Ltd,1137339,"1,187.14",,E Space South,Supplies & Services,4520,Telephone,ESpace South,
East Cambridgeshire District Council,02/06/2017,Ip-Xchange Ltd,1137348,"2,288.79",,E Space North,Supplies & Services,4520,Telephone,ESpace North,
East Cambridgeshire District Council,08/06/2017,Daisy Corporate Services,1137379,"2,719.76",,Information Technology,Supplies & Services,4520,Telephone,1/5/17-31/5/17,
East Cambridgeshire District Council,12/06/2017,Virgin Media Payments Ltd - 743058701,1137417,"2,020.18",,Information Technology,Supplies & Services,4520,Telephone,Account Number 743058701001,
East Cambridgeshire District Council,23/06/2017,Virgin Media Payments Ltd - 743058701,1137478,-517.98,,Information Technology,Supplies & Services,4520,Telephone,Account Number 743058701,
East Cambridgeshire District Council,02/06/2017,Virgin Media Payments - 923467,1137352,"1,634.14",,Information Technology,Supplies & Services,4522,Contributions (IT Only CCN),Account 923467,
East Cambridgeshire District Council,31/05/2017,Local World Ltd - Cambridge Newspapers,638894,787.5,,Parking Of Vehicles,Supplies & Services,4530,Adverts Other Than Staff,,
East Cambridgeshire District Council,31/05/2017,Local World Ltd - Cambridge Newspapers,638894,607.5,,Planning,Supplies & Services,4532,T&C Planning Act Adverts,,
East Cambridgeshire District Council,14/06/2017,Local World Ltd - Cambridge Newspapers,638966,789.18,,Planning,Supplies & Services,4532,T&C Planning Act Adverts,,
East Cambridgeshire District Council,05/06/2017,Local World Ltd - Cambridge Newspapers,638967,630,,Planning,Supplies & Services,4532,T&C Planning Act Adverts,,
East Cambridgeshire District Council,18/06/2017,Archant Regional Ltd,639050,"3,400.00",,Economic Development Admin,Supplies & Services,4540,Promotion Costs,Adverts 13/6/17 & 15/6/17,
East Cambridgeshire District Council,23/06/2017,names.co.uk,5106523,74.38,,Economic Development Admin,Supplies & Services,4540,Promotion Costs,Domain renewal,Y
East Cambridgeshire District Council,23/06/2017,names.co.uk,5106523,11.99,,National Practitioner Support Programme,Supplies & Services,4540,Promotion Costs,Domain renewal,Y
East Cambridgeshire District Council,07/05/2017,Housing Partners Limited,638907,"8,000.00",,National Practitioner Support Programme,Supplies & Services,4550,IT Licences,Annual Housing & Maint,
East Cambridgeshire District Council,19/06/2017,Idox Software Limited,639062,"14,000.00",,Information Technology,Supplies & Services,4550,IT Licences,50% on Order - Software Bundle,
East Cambridgeshire District Council,07/06/2017,Phoenix Software Ltd,639067,"2,472.56",,Information Technology,Supplies & Services,4550,IT Licences,SQL Server,
East Cambridgeshire District Council,12/06/2017,Northgate Public Services (UK) Ltd,1137413,"1,025.20",,Information Technology,Supplies & Services,4550,IT Licences,Licence & Support 23/7/17-22/7/18 - Paris Web Services,
East Cambridgeshire District Council,23/06/2017,Google ,5106523,39.6,,National Practitioner Support Programme,Supplies & Services,4550,IT Licences,Google for work,Y
East Cambridgeshire District Council,20/06/2017,CCS Media Ltd,639055,769.83,,Management Team,Supplies & Services,4551,Hardware Purchases/Maint,IPad Pro,
East Cambridgeshire District Council,23/06/2017,Broadbandbuyer.com,5106523,66.4,,Local Elections,Supplies & Services,4551,Hardware Purchases/Maint,Draytech Vogor 130,Y
East Cambridgeshire District Council,23/06/2017,Amazon,5106523,18.08,,Information Technology,Supplies & Services,4551,Hardware Purchases/Maint,Kingston 16GB USB memory sticks,Y
East Cambridgeshire District Council,23/06/2017,Broadbandbuyer.com,5106523,380.84,,Local Elections,Supplies & Services,4551,Hardware Purchases/Maint,Draytech Vogor 3220,Y
East Cambridgeshire District Council,23/06/2017,Micron Eurpoe Ltd,5106523,99.98,,Information Technology,Supplies & Services,4551,Hardware Purchases/Maint,Crucial RAM memory 8GB,Y
East Cambridgeshire District Council,23/06/2017,Amazon,5106523,53.73,,Information Technology,Supplies & Services,4554,Consummables,Epson 79XL black ink,Y
East Cambridgeshire District Council,15/05/2017,Ocean Media Group Ltd,638914,750,,National Practitioner Support Programme,Supplies & Services,4620,Staff Conference Expenses,Housing 2017 Sponsorship,
East Cambridgeshire District Council,24/05/2017,Rural Cambs Citizens Advice Bureau,638884,"23,673.40",,Community Projects & Grants,Supplies & Services,4700,Grants To Voluntary Organisations,1/2 SLA 2017/18 1/4/17-30/9/17,
East Cambridgeshire District Council,02/06/2017,Newmarket & District Citizens Advice Bureau,638895,"11,583.02",,Community Projects & Grants,Supplies & Services,4700,Grants To Voluntary Organisations,First Instalment of Annual Grant Aid for 2017/18,
East Cambridgeshire District Council,19/06/2017,Little Thetford Village Hall,639081,"10,000.00",,Facilities Improvement Grants,Supplies & Services,4710,Grants,Kitchen Refurbishment,
East Cambridgeshire District Council,10/06/2017,Election Claims Unit,1137389,851.94,,Police & Crime Commissioners Elections,Supplies & Services,4710,Grants,Cambridgeshire PARO PCC 2016 Advanced Over Paid,
East Cambridgeshire District Council,14/06/2017,Manchester City Council,638968,"4,357.83",,National Practitioner Support Programme,Supplies & Services,4713,Grants - Contributions,Redacted Personal Data- April 2017 Secondment,
East Cambridgeshire District Council,21/06/2017,Staploe Education Trust,639098,"1,000.00",,Community Safety,Supplies & Services,4713,Grants - Contributions,,
East Cambridgeshire District Council,23/05/2017,LuvEly,1137287,"1,242.22",,Community Safety,Supplies & Services,4713,Grants - Contributions,"Room Rental & Management 2, 9, 16, 23 & 30/5/17",
East Cambridgeshire District Council,26/05/2017,Cambridgeshire & Peterborough Fire Authority,1137323,"5,000.00",,Emergency Planning,Supplies & Services,4713,Grants - Contributions,CPLRF Contributory Partner 2017/18 Payment,
East Cambridgeshire District Council,19/06/2017,LuvEly,1137445,938.93,,Community Safety,Supplies & Services,4713,Grants - Contributions,"Room Rental & Management Services 4th, 11th, 18th, 25th April 2017",
East Cambridgeshire District Council,23/06/2017,LuvEly,1137467,"1,025.70",,Community Safety,Supplies & Services,4713,Grants - Contributions,"Room Rental & Management Services 6th, 13th, 20th, 27th June 2017",
East Cambridgeshire District Council,29/06/2017,CCS Cleaning & Maintenance Ltd,639130,600,,Homelessness,Supplies & Services,4910,Other Payments,296 Columbine Road - Full Deep Clean,
East Cambridgeshire District Council,08/06/2017,Redacted Personal Data,1137375,"1,160.00",,Marketing & Grants,Supplies & Services,4910,Other Payments,Escape Room Sessions OCH May 17,
East Cambridgeshire District Council,09/06/2017,AmeyCespa (East) Limited,639086,958.77,,The Grange,Third Party Payments,5010,Contracted Services,bulky waste,
East Cambridgeshire District Council,31/05/2017,AmeyCespa (East) Limited,1137338,"9,112.86",,Recycling,Third Party Payments,5010,Contracted Services,,
East Cambridgeshire District Council,22/06/2017,SLM Ltd,1137462,"9,362.54",,Paradise Pool,Third Party Payments,5010,Contracted Services,Management Fee - June 2017,
East Cambridgeshire District Council,20/06/2017,Veolia ES (UK) Ltd,1137463,"1,798.11",,Bulk Waste,Third Party Payments,5010,Contracted Services,Monthly Recycling & Cleaning 1/5/17-31/5/17,
East Cambridgeshire District Council,20/06/2017,Veolia ES (UK) Ltd,1137463,"30,752.50",,Recycling,Third Party Payments,5010,Contracted Services,Monthly Recycling & Cleaning 1/5/17-31/5/17,
East Cambridgeshire District Council,20/06/2017,Veolia ES (UK) Ltd,1137463,"30,752.50",,Recycling Organic Waste,Third Party Payments,5010,Contracted Services,Monthly Recycling & Cleaning 1/5/17-31/5/17,
East Cambridgeshire District Council,20/06/2017,Veolia ES (UK) Ltd,1137463,"72,700.93",,Refuse Collection,Third Party Payments,5010,Contracted Services,Monthly Recycling & Cleaning 1/5/17-31/5/17,
East Cambridgeshire District Council,20/06/2017,Veolia ES (UK) Ltd,1137463,"41,166.05",,Weekly Collection Support Grant,Third Party Payments,5010,Contracted Services,Monthly Recycling & Cleaning 1/5/17-31/5/17,
East Cambridgeshire District Council,20/06/2017,Veolia ES (UK) Ltd,1137463,"45,162.31",,Street Cleansing,Third Party Payments,5010,Contracted Services,Monthly Recycling & Cleaning 1/5/17-31/5/17,
East Cambridgeshire District Council,26/06/2017,East Cambs Trading Co Ltd,1137475,"116,591.34",,Parks And Open Spaces,Third Party Payments,5010,Contracted Services,Management Fee for Parks & Open Spaces Services 1/5/17-30/6/17,
East Cambridgeshire District Council,24/06/2017,AmeyCespa (East) Limited,1137470,-697.32,,The Grange,Third Party Payments,5010,Contracted Services,Relates to Invoice ASI40302,
East Cambridgeshire District Council,01/06/2017,Breckland Council,1137322,"34,567.33",,Council Tax Collection Costs,Third Party Payments,5020,ARP Services,Monthly Provision of Service 2017/18,
East Cambridgeshire District Council,01/06/2017,Breckland Council,1137322,"44,280.75",,Housing Benefits,Third Party Payments,5020,ARP Services,Monthly Provision of Service 2017/18,
East Cambridgeshire District Council,01/06/2017,Breckland Council,1137322,"9,713.42",,NNDR Collection costs,Third Party Payments,5020,ARP Services,Monthly Provision of Service 2017/18,
East Cambridgeshire District Council,01/06/2017,Breckland Council,1137322,"-2,857.50",,Council Tax Collection Costs,Third Party Payments,5020,ARP Services,Monthly Provision of Service 2017/18,
East Cambridgeshire District Council,19/05/2017,Breckland Council,1137277,872,,Housing Benefits,Third Party Payments,5023,Grants Paid Over (ARP),New Burdens Relating to Single Fraud Investigation Service 2017/18,
East Cambridgeshire District Council,15/06/2017,Breckland Council,1137443,"1,376.00",,Housing Benefits,Third Party Payments,5023,Grants Paid Over (ARP),Initial Payment for Real Time Information Bulk Data Matching Initiative 2017/18,
East Cambridgeshire District Council,01/06/2017,Pellikaan Holding (Belgie) NV,638865,"1,098,987.27",,Leisure Facility,Capital Costs,C201,Payments To Contractors,Ely Leisure Centre,
East Cambridgeshire District Council,26/06/2017,Pellikaan Holding (Belgie) NV,639117,"854,923.39",,Leisure Facility,Capital Costs,C201,Payments To Contractors,6th Valuation,
East Cambridgeshire District Council,07/06/2017,Mace Limited,638923,"18,799.00",,Leisure Facility,Capital Costs,C301,Professional Fees,East Cambs Leisure Centre - RIBA 5,
East Cambridgeshire District Council,07/06/2017,Mace Limited,638924,"18,799.00",,Leisure Facility,Capital Costs,C301,Professional Fees,East Cambs Leisure Centre - RIBA 5,
East Cambridgeshire District Council,06/06/2017,SLR Consulting,639129,600,,Leisure Facility,Capital Costs,C304,Contingency,Coach Parking Assessment - District Leisure Centre,
East Cambridgeshire District Council,08/06/2017,Paul Barrow Builders  Ltd,1137381,"18,720.00",,Mandatory Disabled Fac.Grant,Capital Costs,C402,Home Imp.Grant 50% advance,Redacted Personal Data,
East Cambridgeshire District Council,22/06/2017,Total Hygiene Limited,1137465,"4,093.00",,Mandatory Disabled Fac.Grant,Capital Costs,C402,Home Imp.Grant 50% advance,Redacted Personal Data,
East Cambridgeshire District Council,29/06/2017,PVS Holdings Ltd,1137507,"3,430.00",,Mandatory Disabled Fac.Grant,Capital Costs,C402,Home Imp.Grant 50% advance,Redacted Personal Data,
East Cambridgeshire District Council,08/06/2017,Ashco Building & Maintenance Services Ltd,1137382,"2,114.43",,Mandatory Disabled Fac.Grant,Capital Costs,C404,Home Imp.Grant. Final payment,Redacted Personal Data,
East Cambridgeshire District Council,08/06/2017,Heating & Plumbing Services (Wisbech) Ltd,1137383,"5,616.73",,Mandatory Disabled Fac.Grant,Capital Costs,C404,Home Imp.Grant. Final payment,Redacted Personal Data,
East Cambridgeshire District Council,29/06/2017,Lynch Healthcare,1137506,"3,299.86",,Mandatory Disabled Fac.Grant,Capital Costs,C404,Home Imp.Grant. Final payment,Redacted Personal Data,
East Cambridgeshire District Council,25/05/2017,Southfield Stationers Ltd,638867,"1,844.92",,Cromwell House,Merchandising Stock,P730,Purchase - Souvenirs & Gifts,,
East Cambridgeshire District Council,09/06/2017,Macmillan Distribution,638930,559,,Cromwell House,Merchandising Stock,P740,Purchase - Publications & Books,,
East Cambridgeshire District Council,09/06/2017,Macmillan Distribution,638929,-812.31,,Cromwell House,Merchandising Stock,P740,Purchase - Publications & Books,Relates to Invoice 96885824,
,,,,"461,959.51",,,,,,,
